[Event "Titled Tuesday Blitz January 31 Late 2023"]
[White "Gonzalez, Francisco Silva"]
[Black "Iskusnyh, Sergei"]
[WhiteFideId "1512285"]
[BlackFideId "4120027"]
[WhiteElo "2021"]
[BlackElo "2440"]
[Result "0-1"]
[Round "05"]
[TimeControl "180+2"]
[Date "2023.01.31"]
[WhiteClock "0:01:46"]
[BlackClock "0:01:06"]

1. d4 {[%clk 0:02:42]}  d5 {[%clk 0:02:58]} 2. c4 {[%clk 0:02:42]}  c6 {[%clk 0:02:58]} 3. Nc3 {[%clk 0:02:42]}  Nf6 {[%clk 0:02:58]} 4. e3 {[%clk 0:02:41]}  e6 {[%clk 0:02:55]} 5. Nf3 {[%clk 0:02:41]}  a6 {[%clk 0:02:54]} 6. a3 {[%clk 0:02:39]}  Nbd7 {[%clk 0:02:37]} 7. Qc2 {[%clk 0:02:37]}  dxc4 {[%clk 0:02:28]} 8. Bxc4 {[%clk 0:02:35]}  b5 {[%clk 0:02:20]} 9. Ba2 {[%clk 0:02:35]}  c5 {[%clk 0:02:19]} 10. dxc5 {[%clk 0:02:33]}  Bxc5 {[%clk 0:02:18]} 11. b4 {[%clk 0:02:33]}  Bd6 {[%clk 0:02:14]} 12. Bb2 {[%clk 0:02:33]}  Bb7 {[%clk 0:02:13]} 13. Rd1 {[%clk 0:02:33]}  Qc7 {[%clk 0:02:10]} 14. Qd3 {[%clk 0:02:33]}  Be7 {[%clk 0:01:49]} 15. Nd4 {[%clk 0:02:28]}  Ne5 {[%clk 0:01:43]} 16. Qb1 {[%clk 0:02:27]}  Nc4 {[%clk 0:01:42]} 17. Rc1 {[%clk 0:01:59]}  Nxb2 {[%clk 0:01:24]} 18. Qxb2 {[%clk 0:01:59]}  Rc8 {[%clk 0:01:23]} 19. O-O {[%clk 0:01:58]}  Qe5 {[%clk 0:01:23]} 20. Nce2 {[%clk 0:01:49]}  O-O {[%clk 0:01:15]} 21. Nf4 {[%clk 0:01:48]}  Ne4 {[%clk 0:01:07]} 22. Nf3 {[%clk 0:01:46]}  Qxb2 {[%clk 0:01:06]} 0-1


[Site "https://www.chess.com"]

[Event "Titled Tuesday Blitz January 31 Late 2023"]
[White "Ortega Amarelle, Mariano"]
[Black "Martynov, Pavel"]
[WhiteFideId "3504301"]
[BlackFideId "4101260"]
[WhiteElo "2472"]
[BlackElo "2414"]
[Result "1-0"]
[Round "05"]
[TimeControl "180+2"]
[Date "2023.01.31"]
[WhiteClock "0:00:12"]
[BlackClock "0:00:11"]

1. e4 {[%clk 0:02:57]}  c5 {[%clk 0:02:53]} 2. Nf3 {[%clk 0:02:57]}  e6 {[%clk 0:02:52]} 3. d4 {[%clk 0:02:54]}  cxd4 {[%clk 0:02:52]} 4. Nxd4 {[%clk 0:02:55]}  Nc6 {[%clk 0:02:53]} 5. Nc3 {[%clk 0:02:54]}  Qc7 {[%clk 0:02:53]} 6. Be3 {[%clk 0:02:54]}  a6 {[%clk 0:02:54]} 7. Qf3 {[%clk 0:02:52]}  b5 {[%clk 0:02:49]} 8. Qg3 {[%clk 0:02:50]}  Qxg3 {[%clk 0:02:46]} 9. hxg3 {[%clk 0:02:50]}  Bb7 {[%clk 0:02:46]} 10. a3 {[%clk 0:02:43]}  Nf6 {[%clk 0:02:45]} 11. f3 {[%clk 0:02:42]}  Ne5 {[%clk 0:02:41]} 12. O-O-O {[%clk 0:02:29]}  Rc8 {[%clk 0:02:31]} 13. g4 {[%clk 0:02:24]}  Bxa3 {[%clk 0:02:12]} 14. Ncxb5 {[%clk 0:02:16]}  Bc5 {[%clk 0:01:49]} 15. Nc3 {[%clk 0:02:09]}  d6 {[%clk 0:01:32]} 16. g5 {[%clk 0:02:03]}  Nfd7 {[%clk 0:01:32]} 17. Be2 {[%clk 0:02:00]}  Nb6 {[%clk 0:01:30]} 18. Bf2 {[%clk 0:01:33]}  Ke7 {[%clk 0:01:21]} 19. f4 {[%clk 0:01:29]}  Nec4 {[%clk 0:01:17]} 20. Bd3 {[%clk 0:00:34]}  g6 {[%clk 0:00:56]} 21. Rdf1 {[%clk 0:00:24]}  Bb4 {[%clk 0:00:49]} 22. Nde2 {[%clk 0:00:22]}  Nd7 {[%clk 0:00:37]} 23. b3 {[%clk 0:00:18]}  Na3 {[%clk 0:00:28]} 24. Kb2 {[%clk 0:00:17]}  Nc5 {[%clk 0:00:21]} 25. Ra1 {[%clk 0:00:14]}  Nxd3+ {[%clk 0:00:18]} 26. cxd3 {[%clk 0:00:15]}  Nb5 {[%clk 0:00:19]} 27. Nxb5 {[%clk 0:00:14]}  axb5 {[%clk 0:00:20]} 28. Ra7 {[%clk 0:00:14]}  Rc7 {[%clk 0:00:20]} 29. Rc1 {[%clk 0:00:13]}  Rd7 {[%clk 0:00:20]} 30. Bd4 {[%clk 0:00:12]}  Ra8 {[%clk 0:00:17]} 31. Bf6+ {[%clk 0:00:12]}  Ke8 {[%clk 0:00:10]} 32. Rxa8+ {[%clk 0:00:12]}  Bxa8 {[%clk 0:00:10]} 33. Rc8+ {[%clk 0:00:12]}  Rd8 {[%clk 0:00:11]} 34. Rxd8# {[%clk 0:00:12]} 1-0


[Site "https://www.chess.com"]

[Event "Titled Tuesday Blitz January 31 Late 2023"]
[White "Pesotskiy, Mikhail"]
[Black "Martinez Reyes, Pedro Ramon"]
[WhiteFideId "34164453"]
[BlackFideId "3901807"]
[WhiteElo "2153"]
[BlackElo "2376"]
[Result "0-1"]
[Round "05"]
[TimeControl "180+2"]
[Date "2023.01.31"]
[WhiteClock "0:00:14"]
[BlackClock "0:00:38"]

1. d4 {[%clk 0:00:52]}  e6 {[%clk 0:03:00]} 2. c4 {[%clk 0:00:52]}  d5 {[%clk 0:03:01]} 3. Nc3 {[%clk 0:00:52]}  f5 {[%clk 0:02:59]} 4. Bf4 {[%clk 0:00:51]}  c6 {[%clk 0:02:59]} 5. Nf3 {[%clk 0:00:51]}  Nf6 {[%clk 0:02:59]} 6. e3 {[%clk 0:00:51]}  Be7 {[%clk 0:03:00]} 7. Be2 {[%clk 0:00:48]}  O-O {[%clk 0:03:00]} 8. O-O {[%clk 0:00:49]}  Ne4 {[%clk 0:02:53]} 9. Qb3 {[%clk 0:00:46]}  Nd7 {[%clk 0:02:48]} 10. Rad1 {[%clk 0:00:43]}  Kh8 {[%clk 0:02:30]} 11. Ne5 {[%clk 0:00:39]}  Nxe5 {[%clk 0:02:29]} 12. Bxe5 {[%clk 0:00:40]}  b6 {[%clk 0:02:24]} 13. f3 {[%clk 0:00:40]}  Nf6 {[%clk 0:02:18]} 14. Bd3 {[%clk 0:00:37]}  Nd7 {[%clk 0:02:13]} 15. Bg3 {[%clk 0:00:37]}  Bb7 {[%clk 0:02:10]} 16. e4 {[%clk 0:00:36]}  Bf6 {[%clk 0:01:55]} 17. Bb1 {[%clk 0:00:29]}  c5 {[%clk 0:01:52]} 18. e5 {[%clk 0:00:27]}  Bg5 {[%clk 0:01:42]} 19. f4 {[%clk 0:00:25]}  cxd4 {[%clk 0:01:42]} 20. fxg5 {[%clk 0:00:22]}  Nc5 {[%clk 0:01:40]} 21. Qc2 {[%clk 0:00:20]}  dxc3 {[%clk 0:01:40]} 22. cxd5 {[%clk 0:00:21]}  Bxd5 {[%clk 0:01:38]} 23. bxc3 {[%clk 0:00:21]}  Qxg5 {[%clk 0:01:37]} 24. Bf4 {[%clk 0:00:19]}  Qg6 {[%clk 0:01:34]} 25. c4 {[%clk 0:00:19]}  Be4 {[%clk 0:01:33]} 26. Qf2 {[%clk 0:00:20]}  Rad8 {[%clk 0:01:31]} 27. Rd6 {[%clk 0:00:19]}  Bxb1 {[%clk 0:01:31]} 28. Rxb1 {[%clk 0:00:19]}  Ne4 {[%clk 0:01:31]} 29. Qd4 {[%clk 0:00:19]}  Nxd6 {[%clk 0:01:26]} 30. exd6 {[%clk 0:00:20]}  Qg4 {[%clk 0:01:22]} 31. Re1 {[%clk 0:00:20]}  Rfe8 {[%clk 0:01:05]} 32. a4 {[%clk 0:00:20]}  e5 {[%clk 0:01:04]} 33. Rxe5 {[%clk 0:00:19]}  Rxe5 {[%clk 0:01:04]} 34. Qxe5 {[%clk 0:00:20]}  Qd1+ {[%clk 0:01:03]} 35. Kf2 {[%clk 0:00:20]}  Qc2+ {[%clk 0:01:00]} 36. Kg3 {[%clk 0:00:20]}  Qxc4 {[%clk 0:01:00]} 37. h3 {[%clk 0:00:20]}  Qf7 {[%clk 0:00:57]} 38. a5 {[%clk 0:00:18]}  h6 {[%clk 0:00:57]} 39. axb6 {[%clk 0:00:17]}  axb6 {[%clk 0:00:57]} 40. Qb5 {[%clk 0:00:18]}  Qg6+ {[%clk 0:00:44]} 41. Kh2 {[%clk 0:00:18]}  Rxd6 {[%clk 0:00:44]} 42. Bxd6 {[%clk 0:00:16]}  Qxd6+ {[%clk 0:00:45]} 43. Kh1 {[%clk 0:00:16]}  Qe6 {[%clk 0:00:41]} 44. Kg1 {[%clk 0:00:14]}  Kh7 {[%clk 0:00:41]} 45. Kh1 {[%clk 0:00:15]}  Kg6 {[%clk 0:00:40]} 46. Kh2 {[%clk 0:00:14]}  Qd6+ {[%clk 0:00:39]} 47. Kh1 {[%clk 0:00:15]}  Kf6 {[%clk 0:00:38]} 48. Kg1 {[%clk 0:00:14]}  Qc5+ {[%clk 0:00:38]} 0-1


[Site "https://www.chess.com"]

[Event "Titled Tuesday Blitz January 31 Late 2023"]
[White "Pasti, Aron"]
[Black "OKEKE, Isaac Chukwudalu"]
[WhiteFideId "785857"]
[BlackFideId "8508526"]
[WhiteElo "2361"]
[BlackElo "2155"]
[Result "1/2-1/2"]
[Round "05"]
[TimeControl "180+2"]
[Date "2023.01.31"]
[WhiteClock "0:00:02"]
[BlackClock "0:00:09"]

1. e4 {[%clk 0:03:00]}  c5 {[%clk 0:02:59]} 2. Nf3 {[%clk 0:03:01]}  d6 {[%clk 0:02:59]} 3. d4 {[%clk 0:03:01]}  cxd4 {[%clk 0:03:00]} 4. Nxd4 {[%clk 0:03:02]}  Nf6 {[%clk 0:03:01]} 5. Nc3 {[%clk 0:03:02]}  a6 {[%clk 0:03:01]} 6. h3 {[%clk 0:03:01]}  e5 {[%clk 0:02:56]} 7. Nde2 {[%clk 0:03:01]}  h5 {[%clk 0:02:55]} 8. g3 {[%clk 0:03:01]}  Be7 {[%clk 0:02:54]} 9. Bg2 {[%clk 0:03:01]}  Be6 {[%clk 0:02:54]} 10. O-O {[%clk 0:03:00]}  Qd7 {[%clk 0:02:49]} 11. Kh2 {[%clk 0:02:48]}  Nc6 {[%clk 0:02:11]} 12. Nd5 {[%clk 0:02:42]}  Bd8 {[%clk 0:01:41]} 13. f4 {[%clk 0:02:35]}  exf4 {[%clk 0:01:38]} 14. Nexf4 {[%clk 0:02:31]}  Ne5 {[%clk 0:01:35]} 15. b3 {[%clk 0:02:22]}  h4 {[%clk 0:00:58]} 16. Bb2 {[%clk 0:01:57]}  hxg3+ {[%clk 0:00:57]} 17. Kxg3 {[%clk 0:01:58]}  Bxd5 {[%clk 0:00:38]} 18. Nxd5 {[%clk 0:01:50]}  Nxe4+ {[%clk 0:00:37]} 19. Kh2 {[%clk 0:01:47]}  Ng5 {[%clk 0:00:26]} 20. Bxe5 {[%clk 0:01:25]}  dxe5 {[%clk 0:00:18]} 21. Qd3 {[%clk 0:01:20]}  Rh4 {[%clk 0:00:10]} 22. Rae1 {[%clk 0:01:16]}  Kf8 {[%clk 0:00:09]} 23. Rxe5 {[%clk 0:01:12]}  Ne6 {[%clk 0:00:09]} 24. Ref5 {[%clk 0:01:05]}  f6 {[%clk 0:00:04]} 25. Kh1 {[%clk 0:00:36]}  Qd6 {[%clk 0:00:03]} 26. R1f3 {[%clk 0:00:17]}  Rd4 {[%clk 0:00:03]} 27. Nxf6 {[%clk 0:00:05]}  Rxd3 {[%clk 0:00:02]} 28. Ne4+ {[%clk 0:00:05]}  Kg8 {[%clk 0:00:02]} 29. Nxd6 {[%clk 0:00:04]}  Rd1+ {[%clk 0:00:03]} 30. Rf1 {[%clk 0:00:03]}  Rxd6 {[%clk 0:00:03]} 31. Re1 {[%clk 0:00:03]}  Bf6 {[%clk 0:00:04]} 32. Bd5 {[%clk 0:00:03]}  Kf7 {[%clk 0:00:04]} 33. c4 {[%clk 0:00:02]}  Re8 {[%clk 0:00:04]} 34. Rf3 {[%clk 0:00:02]}  Ke7 {[%clk 0:00:04]} 35. Rfe3 {[%clk 0:00:01]}  Kd7 {[%clk 0:00:04]} 36. Re4 {[%clk 0:00:01]}  Nc7 {[%clk 0:00:04]} 37. Rxe8 {[%clk 0:00:02]}  Nxe8 {[%clk 0:00:05]} 38. Bxb7 {[%clk 0:00:02]}  Rd2 {[%clk 0:00:05]} 39. Bd5 {[%clk 0:00:02]}  Nd6 {[%clk 0:00:05]} 40. c5 {[%clk 0:00:02]}  Nf5 {[%clk 0:00:05]} 41. Be6+ {[%clk 0:00:03]}  Kc6 {[%clk 0:00:05]} 42. Bxf5 {[%clk 0:00:03]}  Kxc5 {[%clk 0:00:06]} 43. a4 {[%clk 0:00:03]}  Kb4 {[%clk 0:00:06]} 44. Be6 {[%clk 0:00:04]}  a5 {[%clk 0:00:07]} 45. Re4+ {[%clk 0:00:04]}  Ka3 {[%clk 0:00:07]} 46. Bc4 {[%clk 0:00:04]}  Rd4 {[%clk 0:00:06]} 47. Re3 {[%clk 0:00:04]}  Rd1+ {[%clk 0:00:06]} 48. Kg2 {[%clk 0:00:04]}  Kb4 {[%clk 0:00:07]} 49. Re6 {[%clk 0:00:04]}  Rd4 {[%clk 0:00:07]} 50. Kf3 {[%clk 0:00:04]}  Bd8 {[%clk 0:00:07]} 51. Re8 {[%clk 0:00:03]}  Bf6 {[%clk 0:00:07]} 52. Rb8+ {[%clk 0:00:03]}  Ka3 {[%clk 0:00:07]} 53. Rb5 {[%clk 0:00:03]}  Bd8 {[%clk 0:00:06]} 54. Rb7 {[%clk 0:00:04]}  Bf6 {[%clk 0:00:06]} 55. Ke3 {[%clk 0:00:04]}  Rd8 {[%clk 0:00:05]} 56. Kf3 {[%clk 0:00:03]}  Bc3 {[%clk 0:00:06]} 57. Kg4 {[%clk 0:00:03]}  Rf8 {[%clk 0:00:06]} 58. Kg5 {[%clk 0:00:03]}  Rf2 {[%clk 0:00:07]} 59. h4 {[%clk 0:00:03]}  Rg2+ {[%clk 0:00:07]} 60. Kh5 {[%clk 0:00:03]}  Bf6 {[%clk 0:00:08]} 61. Rb5 {[%clk 0:00:03]}  Bc3 {[%clk 0:00:07]} 62. Bd3 {[%clk 0:00:02]}  Rd2 {[%clk 0:00:08]} 63. Bg6 {[%clk 0:00:02]}  Rd4 {[%clk 0:00:06]} 64. Bf7 {[%clk 0:00:01]}  Be1 {[%clk 0:00:07]} 65. Kg6 {[%clk 0:00:01]}  Rxh4 {[%clk 0:00:07]} 66. Kxg7 {[%clk 0:00:02]}  Bb4 {[%clk 0:00:07]} 67. Kg8 {[%clk 0:00:02]}  Rg4+ {[%clk 0:00:07]} 68. Kh7 {[%clk 0:00:02]}  Rd4 {[%clk 0:00:08]} 69. Bc4 {[%clk 0:00:02]}  Rd2 {[%clk 0:00:08]} 70. Rb7 {[%clk 0:00:02]}  Rb2 {[%clk 0:00:09]} 71. Kg6 {[%clk 0:00:02]} 1/2-1/2


[Site "https://www.chess.com"]

[Event "Titled Tuesday Blitz January 31 Late 2023"]
[White "O`Gorman, Tom"]
[Black "Lopez Del Alamo, Antonio"]
[WhiteFideId "2508249"]
[BlackFideId "2227339"]
[WhiteElo "2355"]
[BlackElo "2280"]
[Result "1-0"]
[Round "05"]
[TimeControl "180+2"]
[Date "2023.01.31"]
[WhiteClock "0:01:01"]
[BlackClock "0:01:08"]

1. e4 {[%clk 0:03:00]}  c5 {[%clk 0:02:59]} 2. Nf3 {[%clk 0:03:00]}  e6 {[%clk 0:02:58]} 3. d4 {[%clk 0:02:59]}  cxd4 {[%clk 0:02:59]} 4. Nxd4 {[%clk 0:03:00]}  Nf6 {[%clk 0:02:59]} 5. Bd3 {[%clk 0:02:59]}  Nc6 {[%clk 0:03:00]} 6. Nxc6 {[%clk 0:02:58]}  dxc6 {[%clk 0:03:00]} 7. O-O {[%clk 0:02:57]}  e5 {[%clk 0:03:01]} 8. Nd2 {[%clk 0:02:56]}  Bc5 {[%clk 0:03:01]} 9. Nc4 {[%clk 0:02:55]}  Qe7 {[%clk 0:02:59]} 10. a4 {[%clk 0:02:54]}  a5 {[%clk 0:02:56]} 11. b3 {[%clk 0:02:49]}  O-O {[%clk 0:02:55]} 12. Bb2 {[%clk 0:02:49]}  Nd7 {[%clk 0:02:54]} 13. Qh5 {[%clk 0:02:48]}  f6 {[%clk 0:02:52]} 14. Rad1 {[%clk 0:02:46]}  Re8 {[%clk 0:02:51]} 15. Rfe1 {[%clk 0:02:38]}  Nf8 {[%clk 0:02:50]} 16. Ne3 {[%clk 0:02:37]}  g6 {[%clk 0:02:47]} 17. Qh4 {[%clk 0:02:34]}  Ne6 {[%clk 0:02:44]} 18. Ng4 {[%clk 0:02:30]}  Ng5 {[%clk 0:02:38]} 19. Bc1 {[%clk 0:02:22]}  Bxg4 {[%clk 0:02:35]} 20. Qxg4 {[%clk 0:02:23]}  Ne6 {[%clk 0:02:25]} 21. h4 {[%clk 0:02:22]}  Nd4 {[%clk 0:02:02]} 22. h5 {[%clk 0:02:19]}  Kg7 {[%clk 0:02:01]} 23. Qh3 {[%clk 0:02:11]}  g5 {[%clk 0:01:59]} 24. h6+ {[%clk 0:02:09]}  Kh8 {[%clk 0:01:58]} 25. Qh5 {[%clk 0:01:43]}  Rg8 {[%clk 0:01:54]} 26. c3 {[%clk 0:01:30]}  Ne6 {[%clk 0:01:44]} 27. Bc4 {[%clk 0:01:29]}  Rg6 {[%clk 0:01:41]} 28. Rd3 {[%clk 0:01:25]}  g4 {[%clk 0:01:39]} 29. g3 {[%clk 0:01:17]}  Rd8 {[%clk 0:01:34]} 30. Red1 {[%clk 0:01:12]}  Rxd3 {[%clk 0:01:34]} 31. Rxd3 {[%clk 0:01:13]}  Ng5 {[%clk 0:01:11]} 32. Qxg4 {[%clk 0:01:05]}  Rxh6 {[%clk 0:01:11]} 33. Qc8+ {[%clk 0:01:04]}  Qf8 {[%clk 0:01:09]} 34. Rd8 {[%clk 0:01:03]}  Kg7 {[%clk 0:01:08]} 35. Rxf8 {[%clk 0:01:03]}  Bxf8 {[%clk 0:01:09]} 36. Qxb7+ {[%clk 0:01:02]}  Kg6 {[%clk 0:01:08]} 37. Bxg5 {[%clk 0:01:01]} 1-0


[Site "https://www.chess.com"]

[Event "Titled Tuesday Blitz January 31 Late 2023"]
[White "Slade, Theodore"]
[Black "Rosenberg, Evan S"]
[WhiteFideId "426547"]
[BlackFideId "2019299"]
[WhiteElo "1995"]
[BlackElo "1956"]
[Result "0-1"]
[Round "05"]
[TimeControl "180+2"]
[Date "2023.01.31"]
[WhiteClock "0:00:37"]
[BlackClock "0:00:04"]

1. d4 {[%clk 0:03:00]}  d5 {[%clk 0:02:59]} 2. c4 {[%clk 0:03:00]}  e6 {[%clk 0:02:59]} 3. Nf3 {[%clk 0:03:01]}  c5 {[%clk 0:03:00]} 4. cxd5 {[%clk 0:03:00]}  exd5 {[%clk 0:03:00]} 5. Nc3 {[%clk 0:03:01]}  Nf6 {[%clk 0:03:00]} 6. Bg5 {[%clk 0:03:00]}  Be6 {[%clk 0:02:45]} 7. e3 {[%clk 0:03:00]}  c4 {[%clk 0:02:42]} 8. Be2 {[%clk 0:02:56]}  Bb4 {[%clk 0:02:41]} 9. O-O {[%clk 0:02:54]}  Nbd7 {[%clk 0:02:36]} 10. Ne5 {[%clk 0:02:45]}  O-O {[%clk 0:02:34]} 11. Nxd7 {[%clk 0:02:44]}  Qxd7 {[%clk 0:02:32]} 12. Bxf6 {[%clk 0:02:44]}  gxf6 {[%clk 0:02:33]} 13. f3 {[%clk 0:02:11]}  Kh8 {[%clk 0:02:29]} 14. e4 {[%clk 0:02:11]}  Rg8 {[%clk 0:02:29]} 15. Rc1 {[%clk 0:01:50]}  b5 {[%clk 0:02:25]} 16. Qd2 {[%clk 0:01:49]}  Rad8 {[%clk 0:02:19]} 17. Qf4 {[%clk 0:01:43]}  dxe4 {[%clk 0:01:59]} 18. Qxf6+ {[%clk 0:01:38]}  Rg7 {[%clk 0:02:00]} 19. Rcd1 {[%clk 0:01:31]}  Be7 {[%clk 0:01:50]} 20. Qe5 {[%clk 0:01:27]}  exf3 {[%clk 0:01:47]} 21. Rxf3 {[%clk 0:01:27]}  Bd6 {[%clk 0:01:44]} 22. Qxb5 {[%clk 0:01:24]}  Qxb5 {[%clk 0:01:26]} 23. Nxb5 {[%clk 0:01:25]}  Bd5 {[%clk 0:01:27]} 24. Rf2 {[%clk 0:01:15]}  Bb8 {[%clk 0:01:24]} 25. Nc3 {[%clk 0:01:14]}  Be6 {[%clk 0:00:33]} 26. d5 {[%clk 0:01:14]}  Bg4 {[%clk 0:00:24]} 27. Bxg4 {[%clk 0:01:11]}  Rxg4 {[%clk 0:00:25]} 28. Rxf7 {[%clk 0:01:11]}  Rdg8 {[%clk 0:00:21]} 29. Rd2 {[%clk 0:01:08]}  Bf4 {[%clk 0:00:17]} 30. Re2 {[%clk 0:01:05]}  Bd6 {[%clk 0:00:14]} 31. Kf1 {[%clk 0:00:53]}  Bc5 {[%clk 0:00:13]} 32. Ne4 {[%clk 0:00:52]}  Bd4 {[%clk 0:00:11]} 33. Nf6 {[%clk 0:00:50]}  Rf4+ {[%clk 0:00:10]} 34. Ke1 {[%clk 0:00:49]}  Rxf6 {[%clk 0:00:09]} 35. Rxa7 {[%clk 0:00:47]}  Bxa7 {[%clk 0:00:09]} 36. Re7 {[%clk 0:00:40]}  Bc5 {[%clk 0:00:08]} 37. Rc7 {[%clk 0:00:41]}  Bd6 {[%clk 0:00:08]} 38. Rxc4 {[%clk 0:00:41]}  Rxg2 {[%clk 0:00:07]} 39. h3 {[%clk 0:00:39]}  Rff2 {[%clk 0:00:06]} 40. Rc6 {[%clk 0:00:38]}  Rxb2 {[%clk 0:00:04]} 41. Kf1 {[%clk 0:00:36]}  Rgf2+ {[%clk 0:00:03]} 42. Kg1 {[%clk 0:00:36]}  Bh2+ {[%clk 0:00:04]} 43. Kh1 {[%clk 0:00:37]}  Rf1# {[%clk 0:00:04]} 0-1


[Site "https://www.chess.com"]

[Event "Titled Tuesday Blitz January 31 Late 2023"]
[White "Abdyzhaparov, Aidar"]
[Black "Poltorak, Sebastian"]
[WhiteFideId "13800361"]
[BlackFideId "1199498"]
[WhiteElo "1978"]
[BlackElo "2354"]
[Result "0-1"]
[Round "05"]
[TimeControl "180+2"]
[Date "2023.01.31"]
[WhiteClock "0:00:08"]
[BlackClock "0:00:21"]

1. Nf3 {[%clk 0:03:00]}  c5 {[%clk 0:02:55]} 2. c4 {[%clk 0:03:01]}  Nc6 {[%clk 0:02:55]} 3. d4 {[%clk 0:03:01]}  cxd4 {[%clk 0:02:55]} 4. Nxd4 {[%clk 0:03:02]}  Nf6 {[%clk 0:02:43]} 5. Nc3 {[%clk 0:03:01]}  g6 {[%clk 0:02:33]} 6. e4 {[%clk 0:03:00]}  Bg7 {[%clk 0:02:34]} 7. Be3 {[%clk 0:03:00]}  d6 {[%clk 0:02:31]} 8. Be2 {[%clk 0:03:00]}  O-O {[%clk 0:02:31]} 9. O-O {[%clk 0:03:00]}  Nxd4 {[%clk 0:02:26]} 10. Bxd4 {[%clk 0:02:59]}  Be6 {[%clk 0:02:27]} 11. Rc1 {[%clk 0:02:47]}  a6 {[%clk 0:02:25]} 12. b3 {[%clk 0:02:42]}  Rc8 {[%clk 0:02:19]} 13. f3 {[%clk 0:02:40]}  Nd7 {[%clk 0:02:17]} 14. Kh1 {[%clk 0:02:24]}  Bxd4 {[%clk 0:02:15]} 15. Qxd4 {[%clk 0:02:25]}  Qb6 {[%clk 0:02:16]} 16. Qd2 {[%clk 0:02:23]}  Qb4 {[%clk 0:02:04]} 17. Rfd1 {[%clk 0:02:19]}  Rfd8 {[%clk 0:02:04]} 18. f4 {[%clk 0:02:07]}  Qa5 {[%clk 0:01:50]} 19. Bd3 {[%clk 0:01:53]}  f6 {[%clk 0:01:46]} 20. Bb1 {[%clk 0:01:49]}  Bf7 {[%clk 0:01:39]} 21. Qf2 {[%clk 0:01:37]}  b5 {[%clk 0:01:37]} 22. Nd5 {[%clk 0:01:17]}  Bxd5 {[%clk 0:01:34]} 23. cxd5 {[%clk 0:01:18]}  Qb6 {[%clk 0:01:32]} 24. Qxb6 {[%clk 0:01:15]}  Nxb6 {[%clk 0:01:33]} 25. Rc6 {[%clk 0:01:12]}  Rxc6 {[%clk 0:01:32]} 26. dxc6 {[%clk 0:01:13]}  Rc8 {[%clk 0:01:32]} 27. Rc1 {[%clk 0:01:13]}  Kf7 {[%clk 0:01:26]} 28. Bd3 {[%clk 0:01:11]}  e6 {[%clk 0:01:24]} 29. a4 {[%clk 0:01:08]}  bxa4 {[%clk 0:01:15]} 30. Bxa6 {[%clk 0:01:09]}  Rc7 {[%clk 0:01:15]} 31. b4 {[%clk 0:01:05]}  Ke7 {[%clk 0:01:14]} 32. Bb5 {[%clk 0:01:00]}  d5 {[%clk 0:01:14]} 33. e5 {[%clk 0:00:57]}  a3 {[%clk 0:00:56]} 34. Ra1 {[%clk 0:00:46]}  Ra7 {[%clk 0:00:54]} 35. g4 {[%clk 0:00:46]}  g5 {[%clk 0:00:48]} 36. fxg5 {[%clk 0:00:39]}  fxe5 {[%clk 0:00:47]} 37. c7 {[%clk 0:00:37]}  Kd6 {[%clk 0:00:41]} 38. c8=Q {[%clk 0:00:34]}  Nxc8 {[%clk 0:00:40]} 39. h4 {[%clk 0:00:35]}  Nb6 {[%clk 0:00:35]} 40. h5 {[%clk 0:00:35]}  d4 {[%clk 0:00:29]} 41. g6 {[%clk 0:00:35]}  hxg6 {[%clk 0:00:29]} 42. h6 {[%clk 0:00:35]}  g5 {[%clk 0:00:27]} 43. Bf1 {[%clk 0:00:28]}  Rh7 {[%clk 0:00:23]} 44. Rxa3 {[%clk 0:00:26]}  Rxh6+ {[%clk 0:00:23]} 45. Kg2 {[%clk 0:00:27]}  Nd5 {[%clk 0:00:22]} 46. Ra6+ {[%clk 0:00:26]}  Ke7 {[%clk 0:00:22]} 47. Kg3 {[%clk 0:00:22]}  Nxb4 {[%clk 0:00:21]} 48. Ra7+ {[%clk 0:00:21]}  Kf6 {[%clk 0:00:21]} 49. Bc4 {[%clk 0:00:19]}  Rh8 {[%clk 0:00:21]} 50. Rb7 {[%clk 0:00:18]}  Nc2 {[%clk 0:00:21]} 51. Rb6 {[%clk 0:00:17]}  Re8 {[%clk 0:00:21]} 52. Bd3 {[%clk 0:00:16]}  Ne3 {[%clk 0:00:20]} 53. Kf3 {[%clk 0:00:16]}  Nd5 {[%clk 0:00:20]} 54. Rd6 {[%clk 0:00:13]}  Nc3 {[%clk 0:00:21]} 55. Bc4 {[%clk 0:00:13]}  e4+ {[%clk 0:00:21]} 56. Kg3 {[%clk 0:00:11]}  Ke5 {[%clk 0:00:21]} 57. Ra6 {[%clk 0:00:11]}  e3 {[%clk 0:00:19]} 58. Kf3 {[%clk 0:00:09]}  Rf8+ {[%clk 0:00:19]} 59. Kg3 {[%clk 0:00:09]}  Nd5 {[%clk 0:00:19]} 60. Bxd5 {[%clk 0:00:07]}  exd5 {[%clk 0:00:19]} 61. Ra7 {[%clk 0:00:08]}  d3 {[%clk 0:00:19]} 62. Re7+ {[%clk 0:00:08]}  Kd4 {[%clk 0:00:20]} 63. Rf7 {[%clk 0:00:08]}  Rxf7 {[%clk 0:00:20]} 64. Kg2 {[%clk 0:00:07]}  d2 {[%clk 0:00:21]} 65. Kg3 {[%clk 0:00:08]}  d1=Q {[%clk 0:00:21]} 0-1


[Site "https://www.chess.com"]

[Event "Titled Tuesday Blitz January 31 Late 2023"]
[White "Do Valle Cardoso, Lucas"]
[Black "ritanovikova"]
[WhiteFideId "2163144"]
[WhiteElo "2250"]
[BlackElo "2217"]
[Result "1-0"]
[Round "05"]
[TimeControl "180+2"]
[Date "2023.01.31"]
[WhiteClock "0:01:39"]
[BlackClock "0:00:28"]

1. e4 {[%clk 0:03:00]}  d5 {[%clk 0:02:54]} 2. exd5 {[%clk 0:03:00]}  Qxd5 {[%clk 0:02:55]} 3. Nc3 {[%clk 0:03:00]}  Qd6 {[%clk 0:02:54]} 4. d4 {[%clk 0:03:01]}  Nf6 {[%clk 0:02:54]} 5. Nf3 {[%clk 0:03:01]}  c6 {[%clk 0:02:52]} 6. Bc4 {[%clk 0:03:01]}  Bf5 {[%clk 0:02:51]} 7. Ne5 {[%clk 0:03:01]}  e6 {[%clk 0:02:48]} 8. Bf4 {[%clk 0:03:02]}  Qb4 {[%clk 0:02:45]} 9. Bb3 {[%clk 0:03:02]}  Nbd7 {[%clk 0:02:42]} 10. a3 {[%clk 0:03:02]}  Qb6 {[%clk 0:02:41]} 11. Nc4 {[%clk 0:03:02]}  Qd8 {[%clk 0:02:36]} 12. Qe2 {[%clk 0:02:56]}  Nb6 {[%clk 0:02:33]} 13. Na5 {[%clk 0:02:34]}  Qd7 {[%clk 0:02:20]} 14. O-O-O {[%clk 0:02:28]}  O-O-O {[%clk 0:02:15]} 15. h3 {[%clk 0:02:15]}  h5 {[%clk 0:02:10]} 16. f3 {[%clk 0:02:07]}  h4 {[%clk 0:02:09]} 17. Ne4 {[%clk 0:02:06]}  Nfd5 {[%clk 0:01:58]} 18. Bh2 {[%clk 0:02:00]}  Bxe4 {[%clk 0:01:11]} 19. fxe4 {[%clk 0:01:58]}  Nf6 {[%clk 0:01:11]} 20. c4 {[%clk 0:01:50]}  Nh5 {[%clk 0:01:03]} 21. c5 {[%clk 0:01:48]}  Na8 {[%clk 0:00:54]} 22. d5 {[%clk 0:01:48]}  cxd5 {[%clk 0:00:36]} 23. c6 {[%clk 0:01:41]}  Qe7 {[%clk 0:00:28]} 24. cxb7+ {[%clk 0:01:40]}  Kd7 {[%clk 0:00:28]} 25. Qb5# {[%clk 0:01:39]} 1-0


[Site "https://www.chess.com"]